bitfinex/quotes_ETHUSD_20260313
["timestamp","ask_amount","ask_price","bid_price","bid_amount"]
[1773404167295,0.002,2131.0,2130.6,5.86722473]
[1773404167480,0.002,2131.0,2130.5,1.627]
[1773404167901,0.002,2131.0,2130.5,7.49422473]
[1773404168588,6.01136118,2131.0,2130.5,1.628]
[1773404168787,1.17321319,2130.9,2130.5,1.628]
[1773404169594,7.18257437,2130.9,2130.5,1.628]
[1773404169896,7.18257437,2130.9,2130.2,0.001]
[1773404171001,7.18257437,2130.9,2130.0,0.001]
[1773404171002,6.00936118,2130.6,2130.0,0.001]
[1773404173028,1.17343346,2130.5,2130.0,0.001]
[1773404173623,7.18279464,2130.5,2130.0,0.001]
[1773404174023,1.17343346,2130.5,2130.0,0.001]
[1773404174206,4.69485278,2131.0,2130.0,5.86822473]
[1773404174207,6.00936118,2130.9,2130.0,5.86822473]
[1773404174520,6.00936118,2130.7,2130.1,1.617]
[1773404175095,7.18273957,2130.6,2130.1,1.617]
[1773404176224,7.18273957,2130.6,2130.0,0.001]
[1773404178132,7.18273957,2130.6,2130.0,5.86822473]
[1773404178306,7.18273957,2130.6,2130.0,0.001]
[1773404179020,7.18273957,2130.6,2130.1,0.001]
[1773404179213,7.18273957,2130.6,2129.7,5.86822473]
[1773404179526,1.17348854,2130.4,2129.9,0.001]
[1773404180107,7.18284972,2130.4,2129.9,0.001]
[1773404180304,1.17348854,2130.4,2129.9,5.86822473]
[1773404180730,1.15898754,2130.4,2129.9,5.86822473]
[1773404181628,4.69595418,2130.5,2129.9,5.86822473]
[1773404182513,10.96879572,2130.5,2129.9,5.86822473]
[1773404185142,6.27284154,2130.4,2129.9,5.86822473]
[1773404186568,7.44638517,2130.3,2129.9,0.001]
[1773404188761,1.17354363,2130.3,2129.9,6.4405044]
[1773404190864,4.69417452,2130.4,2129.9,6.4405044]
[1773404192365,4.69417452,2130.4,2130.1,0.001]
[1773404192758,4.69617452,2130.4,2130.1,0.001]
[1773404193959,10.96901606,2130.4,2130.1,0.001]
[1773404194442,10.96901606,2130.4,2130.1,6.4405044]
[1773404194443,0.002,2130.4,2130.1,6.4405044]
[1773404194837,1.17354363,2130.3,2130.1,0.001]
[1773404195265,1.17354363,2130.3,2129.9,0.001]
[1773404198768,1.17354363,2130.3,2129.9,6.4405044]
[1773404199365,0.002,2130.4,2129.9,6.4405044]
[1773404199569,1.17540835,2130.6,2129.9,1.17475399]
[1773404199738,1.17540835,2130.6,2130.0,6.4395044]
[1773404200171,0.002,2130.6,2130.0,6.4395044]
[1773404200481,0.002,2130.6,2130.2,6.4395044]
[1773404200669,0.002,2130.6,2130.4,6.4395044]
[1773404201490,0.002,2130.6,2130.4,7.61294687]
[1773404205001,0.002,2130.6,2130.5,1.631]
[1773404205197,0.002,2130.6,2130.2,6.4395044]
[1773404205413,0.002,2130.6,2130.3,6.24513103]
[1773404205605,0.002,2130.7,2130.4,6.24413103]
[1773404206406,0.002,2130.7,2130.4,7.87613103]
[1773404207889,0.002,2130.7,2130.4,1.632]
[1773404210699,0.002,2130.7,2130.4,7.87613103]
[1773404212077,6.20114479,2130.7,2130.0,6.30800448]
[1773404212993,6.20114479,2130.7,2130.0,7.48171144]
[1773404213327,6.20114479,2130.7,2130.2,6.30700448]
[1773404213493,0.002,2130.7,2130.2,6.30700448]
[1773404214825,0.002,2130.7,2130.2,7.48059366]
[1773404215724,0.002,2130.7,2130.4,6.30700448]
[1773404216725,0.002,2130.7,2130.5,1.637]
[1773404218100,6.20114479,2130.7,2130.2,6.30700448]
[1773404218410,0.002,2130.5,2130.2,6.30700448]
[1773404218614,0.002,2130.5,2130.4,0.001]
[1773404221531,0.002,2130.5,2130.1,0.001]
[1773404221532,6.20114479,2130.5,2130.1,0.001]
[1773404223217,6.19914479,2130.2,2129.4,0.001]
[1773404224145,6.19914479,2130.2,2129.4,1.1750287]
[1773404224438,6.19914479,2130.2,2129.4,1.17503839]
[1773404224604,6.19914479,2130.2,2129.5,1.641]
[1773404225203,6.19914479,2130.0,2129.5,1.641]
[1773404226538,6.19914479,2130.0,2129.5,2.81498036]
[1773404227355,7.37289141,2130.0,2129.5,8.58080764]
[1773404227514,7.37285765,2130.0,2129.5,8.53384826]
[1773404229419,7.37285765,2130.0,2129.5,1.642]
[1773404230031,6.19914479,2129.9,2129.5,1.642]
[1773404230854,6.19914479,2129.9,2129.6,0.001]
[1773404231242,0.002,2130.0,2129.6,5.7198679]
[1773404231437,0.04895496,2130.0,2129.7,5.7188679]
[1773404231640,0.002,2130.0,2129.7,5.7188679]
[1773404232460,0.04695496,2130.1,2129.7,5.7188679]
[1773404233556,1.22064631,2130.1,2129.7,5.7188679]
[1773404233759,1.22064631,2130.1,2129.7,6.89274051]
[1773404233970,0.04695496,2130.1,2129.7,6.89274051]
[1773404234150,0.002,2130.5,2129.8,5.76582066]
[1773404235827,0.002,2130.5,2130.0,5.7188679]
[1773404236142,6.20114479,2130.5,2129.8,6.89268638]
[1773404236341,6.20114479,2130.5,2129.7,5.7188679]
[1773404237339,6.20114479,2130.5,2129.8,1.645]
[1773404237661,6.20114479,2130.5,2129.8,1.69195276]
[1773404238269,7.37263333,2130.4,2129.8,8.58461664]
[1773404238437,6.19914479,2130.4,2129.8,8.58461664]
[1773404238758,6.19914479,2130.4,2129.9,5.7188679]
[1773404240263,7.37264377,2130.4,2130.0,1.17370892]
[1773404240964,6.19914479,2130.4,2130.0,1.17370892]
[1773404243063,7.37263761,2130.4,2130.0,1.17370892]
[1773404243270,7.37263761,2130.4,2129.9,5.7188679]
[1773404243450,7.37263761,2130.4,2129.9,6.89261258]
[1773404243843,7.37263761,2130.4,2130.0,0.001]
[1773404244058,0.002,2130.2,2130.0,0.001]
[1773404244963,0.002,2130.2,2130.0,1.649]
[1773404245994,6.3420089,2130.2,2130.0,1.649]
[1773404247276,7.51565572,2130.2,2129.8,0.001]
[1773404247482,7.51565572,2130.2,2129.6,1.65]
[1773404248550,7.51565572,2130.2,2129.6,2.82392071]
[1773404248749,7.51565572,2130.2,2129.7,5.76582287]
[1773404248750,0.002,2130.2,2129.7,5.76582287]
[1773404249371,6.3420089,2130.2,2129.8,6.87751539]
[1773404250749,6.3420089,2130.2,2129.6,8.52758419]
[1773404250986,6.3420089,2130.2,2129.6,2.82391271]
[1773404251472,7.51366271,2130.1,2129.6,2.82391271]
[1773404252061,7.51366271,2130.1,2129.5,0.001]
[1773404252250,6.3400089,2130.0,2129.5,5.70369626]
[1773404252452,7.51561874,2130.2,2129.6,5.70369626]
[1773404253573,7.51561874,2130.2,2129.6,6.8776057]
[1773404253776,7.51561874,2130.2,2129.6,6.92456287]
[1773404254074,0.002,2130.2,2129.6,6.92456287]
[1773404254766,1.17561946,2130.2,2129.6,6.8776057]
[1773404254967,7.51562836,2130.2,2129.6,6.8776057]
[1773404255170,7.51562836,2130.2,2129.7,7.40165123]
[1773404256975,7.51562836,2130.2,2129.8,0.001]
[1773404259981,7.51561373,2130.2,2129.8,0.001]
[1773404260857,7.51561373,2130.2,2129.8,5.70469626]
[1773404261070,1.17560483,2130.2,2129.8,5.75164902]
[1773404261577,7.51561373,2130.2,2129.8,0.001]
[1773404262773,7.51561373,2130.2,2129.9,1.657]
[1773404264371,7.51561373,2130.2,2129.8,0.001]
[1773404265649,7.51561373,2130.2,2129.9,1.658]
[1773404267054,7.51561373,2130.2,2129.8,0.001]
[1773404267968,7.51561373,2130.2,2129.8,5.75164902]
[1773404268527,7.51561373,2130.2,2129.9,1.659]
[1773404269156,7.51561373,2130.2,2129.8,0.001]
[1773404269387,6.33845314,2130.1,2129.5,0.001]
[1773404269895,6.33845314,2130.1,2129.7,0.001]
[1773404270088,6.33845314,2129.9,2129.7,0.001]
[1773404270795,1.17381913,2129.8,2129.7,0.001]
[1773404271295,7.51225574,2129.9,2129.7,0.001]
[1773404275909,7.51225574,2129.9,2129.5,0.001]
[1773404277274,7.5122582,2129.9,2129.5,5.70569626]
[1773404280137,7.46843168,2129.9,2129.5,5.70569626]
[1773404280344,1.17380506,2129.9,2129.5,0.001]
[1773404280490,1.17368386,2130.1,2129.6,5.79246515]
[1773404281131,1.17564966,2130.2,2129.6,5.79246515]
[1773404281432,6.14091702,2130.4,2129.5,1.1749704]
[1773404281433,0.002,2130.4,2129.9,6.97733174]
[1773404281731,7.3123327,2130.6,2130.1,5.80357914]
[1773404282412,0.002,2130.2,2130.1,5.80357914]
[1773404285343,0.002,2130.2,2129.8,5.70445959]
[1773404285497,6.14091702,2130.2,2130.0,1.663]
[1773404285815,7.3145677,2130.2,2130.0,1.663]
[1773404286805,6.14091702,2130.2,2130.0,1.663]
[1773404287009,7.31451702,2130.2,2130.0,1.663]
[1773404287206,0.002,2130.2,2130.0,1.663]
[1773404287428,1.17561473,2130.2,2130.0,1.663]
[1773404288014,0.002,2130.2,2130.0,1.663]
[1773404289459,6.14091702,2130.2,2130.0,1.663]
[1773404289931,6.13891702,2130.0,2129.7,0.001]
[1773404290830,7.31456062,2130.2,2129.7,5.70545959]
[1773404291231,7.31456062,2130.2,2129.8,7.36945959]
[1773404291828,7.31456062,2130.2,2129.7,0.001]
[1773404292033,7.31456062,2130.2,2129.8,1.665]
[1773404295750,7.31456062,2130.2,2129.9,0.001]
[1773404298450,7.31456062,2130.2,2129.7,0.001]
[1773404299538,6.13891702,2130.1,2129.7,0.001]
[1773404300423,1.17370892,2130.0,2129.7,0.001]
[1773404300625,6.13891702,2129.9,2129.3,0.001]
[1773404300831,6.28414755,2129.8,2129.3,0.001]
[1773404302033,6.28414755,2129.5,2129.1,0.001]
[1773404302231,6.24048447,2129.5,2128.8,0.001]
[1773404302455,6.25566248,2129.2,2128.6,0.04003483]
[1773404302660,6.23880573,2129.0,2128.6,0.04003483]
[1773404303037,6.17899681,2129.0,2128.6,0.04003483]
[1773404303247,6.13388109,2129.0,2128.6,1e-08]
[1773404303446,6.26975803,2128.9,2127.4,5.87958055]
[1773404303639,6.26975803,2128.9,2127.9,7.53758055]
[1773404303640,6.23936958,2128.9,2127.9,7.53758055]
[1773404303842,6.22443431,2128.9,2127.9,7.53758055]
[1773404304049,6.18083027,2128.9,2127.9,7.53758055]
[1773404304250,6.1361513,2128.9,2127.9,7.53758055]
[1773404304451,6.07666459,2128.9,2127.9,7.53758055]
[1773404304770,6.23991391,2128.7,2128.0,1.17481203]
[1773404305062,6.22467638,2128.7,2128.0,1.17481203]
[1773404305265,6.22467638,2128.7,2127.9,2.8328263]
[1773404305942,6.22467638,2128.7,2128.0,5.87958055]
[1773404306152,1.17437053,2128.8,2128.0,5.92657303]
[1773404306460,7.45851808,2128.8,2128.0,5.92657303]
[1773404306660,7.45851808,2128.8,2128.1,1.17475682]
[1773404306957,7.45851808,2128.8,2128.2,5.92656861]
[1773404307535,7.45851808,2128.8,2128.1,1.17475682]
[1773404308040,7.45851808,2128.8,2127.9,7.0544331]
[1773404308239,7.45851808,2128.8,2128.0,1.662]
[1773404308933,7.45851808,2128.8,2128.0,2.83676438]
[1773404309560,7.41403742,2128.8,2128.0,2.83676438]
[1773404309760,7.36961263,2128.8,2128.0,2.83676438]
[1773404309960,7.35519965,2128.8,2128.0,2.83676438]
[1773404310156,7.32503827,2128.8,2128.0,2.83676438]
[1773404310359,7.28024645,2128.8,2128.1,5.87958055]
[1773404310566,7.23589146,2128.8,2128.1,5.87958055]
[1773404310772,7.19039654,2128.8,2128.2,0.001]
[1773404310974,7.45851808,2128.8,2128.2,0.001]
[1773404311178,7.42831803,2128.8,2128.2,0.001]
[1773404311874,7.41402324,2128.8,2128.2,0.001]
[1773404312042,7.39962833,2128.8,2128.2,0.001]
[1773404312366,7.3551541,2128.8,2128.2,0.001]
[1773404312571,7.30971282,2128.8,2128.2,0.001]
[1773404312871,7.23436449,2128.8,2128.2,0.001]
[1773404313069,7.21924805,2128.8,2128.2,0.001]
[1773404313237,7.17461603,2128.8,2128.2,0.001]
[1773404315347,7.12937349,2128.8,2128.2,0.001]
[1773404315543,7.09962362,2128.8,2128.2,0.001]
[1773404315739,7.07018279,2128.8,2128.2,0.001]
[1773404315951,7.02682883,2128.8,2128.2,0.001]
[1773404316837,7.02682883,2128.8,2128.2,5.88058055]
[1773404317147,7.02682883,2128.8,2128.3,7.10120922]
[1773404317342,7.02682883,2128.8,2128.3,7.10119054]
[1773404317546,1.17434789,2128.9,2128.3,7.05420469]
[1773404317751,1.17430338,2129.0,2128.3,7.05420469]
[1773404318346,1.17430338,2129.0,2128.3,7.10119054]
[1773404319153,7.45845093,2129.0,2128.2,0.001]
[1773404320670,7.45845093,2129.0,2128.2,0.85060775]
[1773404320864,7.45845093,2129.0,2128.4,0.84960775]
[1773404321576,7.42902049,2129.0,2128.4,0.84960775]
[1773404321753,7.38423189,2129.0,2128.4,0.84960775]
[1773404322077,7.29555414,2129.0,2128.3,0.8883899]
[1773404322282,7.28038114,2129.0,2128.3,2.0630285]
[1773404322580,7.28038114,2129.0,2128.3,0.8883899]
[1773404322764,7.28038114,2129.0,2128.2,0.001]
[1773404323586,7.28038114,2129.0,2128.4,0.001]
[1773404323785,6.28414755,2128.7,2128.4,0.001]
[1773404323982,6.26897896,2128.7,2128.4,0.001]
[1773404324278,6.46242076,2128.5,2128.1,0.05969274]
[1773404324474,6.46303776,2128.7,2128.1,0.05969274]
[1773404324658,6.44075825,2128.9,2128.3,0.11848349]
[1773404324861,6.39693877,2128.9,2128.2,0.16230297]
[1773404325056,6.35278687,2128.9,2128.3,0.23897201]
[1773404325253,0.98597842,2129.0,2128.3,0.23897201]
[1773404325254,6.38951766,2128.7,2128.3,0.23897201]
[1773404325654,1.15887068,2128.8,2128.4,0.26739348]
[1773404325866,1.11483819,2128.8,2128.4,0.26739348]
[1773404326084,1.0699008,2128.8,2128.4,0.26739348]
[1773404326280,1.04084314,2128.8,2128.4,0.26739348]
[1773404326475,7.52604896,2128.9,2128.4,0.26739348]
[1773404327380,0.002,2129.0,2128.4,0.26739348]
[1773404327550,1.16107515,2129.1,2128.3,1.17463494]
[1773404327751,1.16107515,2129.1,2128.1,4.69858572]
[1773404328301,6.49999999,2129.0,2128.0,2.83380055]
[1773404328617,6.48559031,2128.8,2128.2,0.01440968]
[1773404328757,6.43969255,2128.8,2128.2,0.06030744]
[1773404328956,6.3804421,2128.8,2128.3,0.12171613]
[1773404329256,6.32102705,2128.8,2128.4,0.17897294]
[1773404329477,0.04698806,2128.8,2128.4,0.17897294]
[1773404329784,1.15899633,2128.9,2128.4,0.17897294]
[1773404329990,7.50282792,2128.9,2128.4,1.39160831]
[1773404330189,7.47504323,2128.9,2128.5,0.22440677]
[1773404330393,7.45955452,2128.9,2128.5,0.22440677]
[1773404330592,7.44487269,2128.9,2128.5,0.22440677]
[1773404332400,7.44487269,2128.9,2128.4,0.22440677]
[1773404332602,7.44487269,2128.9,2128.4,1.39899145]
[1773404333402,7.44487269,2128.9,2128.3,1.17460185]
[1773404333701,7.43043697,2128.9,2128.3,1.17460185]
[1773404333879,7.38512074,2128.9,2128.3,1.17460185]
[1773404334201,7.35424377,2128.9,2128.3,1.39900862]
[1773404335812,7.35424377,2128.9,2128.4,0.22440677]
[1773404337204,6.42401907,2128.7,2128.3,0.001]
[1773404337397,6.43890549,2128.6,2128.3,0.001]
[1773404338278,6.37738827,2128.6,2128.3,0.001]
[1773404338476,6.3310482,2128.6,2128.3,0.001]
[1773404338805,6.30144423,2128.6,2128.3,0.001]
[1773404339002,7.43070477,2128.6,2128.3,0.001]
[1773404339203,7.38596809,2128.6,2128.3,0.001]
[1773404339510,7.31209176,2128.6,2128.3,0.001]
[1773404339713,7.28205666,2128.6,2128.3,0.001]
[1773404339911,7.26763466,2128.6,2128.3,0.001]
[1773404340218,7.19330695,2128.6,2128.3,0.001]
[1773404340382,7.14968825,2128.6,2128.3,0.001]
[1773404340707,7.0897279,2128.6,2128.3,0.001]
[1773404340914,7.07443067,2128.6,2128.3,0.001]
[1773404341119,7.02942542,2128.6,2128.3,0.001]
[1773404341310,6.98406839,2128.6,2128.3,0.001]
[1773404341610,6.91030671,2128.6,2128.3,0.001]
[1773404341815,6.89537157,2128.6,2128.3,0.001]
[1773404342016,6.86553129,2128.6,2128.3,0.001]
[1773404342208,6.82122685,2128.6,2128.3,0.001]
[1773404342391,6.79047617,2128.6,2128.3,0.001]
[1773404342593,6.74547546,2128.6,2128.3,0.001]
[1773404342896,6.71641933,2128.6,2128.3,0.001]
[1773404343095,6.68653989,2128.6,2128.3,0.001]
[1773404343412,6.61242357,2128.6,2128.3,0.001]
[1773404343646,6.55334069,2128.6,2128.3,0.001]
[1773404343824,6.52433494,2128.6,2128.3,0.001]
[1773404343985,6.50962128,2128.6,2128.3,0.001]
[1773404344186,6.45147455,2128.6,2128.3,0.001]
[1773404344408,6.4071419,2128.6,2128.3,0.001]
[1773404344597,6.36354558,2128.6,2128.3,0.001]
[1773404344801,6.33387065,2128.6,2128.3,0.001]
[1773404344992,6.30371189,2128.6,2128.3,0.001]
[1773404345193,6.25872591,2128.6,2128.1,0.04699027]
[1773404345524,6.19892068,2128.6,2128.1,0.04699027]
[1773404345812,6.14053189,2128.6,2128.1,0.04699027]
[1773404346017,6.12514884,2128.6,2128.1,0.04699027]
[1773404346221,6.06451207,2128.6,2128.1,0.04699027]
[1773404346524,5.99019688,2128.6,2128.1,0.04699027]
[1773404346697,5.94567824,2128.6,2128.1,0.04699027]
[1773404347018,5.93036602,2128.6,2128.1,0.04699027]
[1773404347223,6.68421923,2128.6,2128.1,0.04699027]
[1773404347738,6.68421923,2128.6,2128.0,2.33724595]
[1773404349432,6.66874124,2128.6,2128.0,2.33724595]
[1773404349639,6.63916145,2128.6,2128.0,2.33724595]
[1773404350636,6.63916145,2128.6,2128.3,0.001]
[1773404350930,6.42401907,2128.4,2128.0,2.33724595]
[1773404351182,0.002,2128.9,2128.3,2.04295722]
[1773404351321,7.59626501,2129.1,2128.3,2.04295722]
[1773404351505,7.59626501,2129.1,2128.5,2.04295722]
[1773404352500,7.55074411,2129.1,2128.3,2.07304725]
[1773404352699,7.5218444,2129.1,2128.3,2.1200331]
[1773404352993,7.5218444,2129.1,2128.3,2.07304725]
[1773404353202,7.5218444,2129.1,2128.4,2.11737783]
[1773404353431,7.5218444,2129.1,2128.5,2.11737783]
[1773404355254,7.5218444,2129.1,2128.1,2.8397272]
[1773404355567,6.49999999,2128.7,2128.1,2.83972893]
[1773404355734,6.4846494,2128.7,2128.1,2.83972893]
[1773404356061,6.44004022,2128.7,2128.3,0.05995977]
[1773404356259,6.41023907,2128.7,2128.3,0.05995977]
[1773404356565,6.33616755,2128.7,2128.4,0.04698364]
[1773404356760,6.29179757,2128.7,2128.4,0.04698364]
[1773404357069,6.23114018,2128.7,2128.4,0.04698364]
[1773404357362,6.20145977,2128.7,2128.4,0.04698364]
[1773404357533,1.1446752,2128.6,2128.1,3.16914772]
[1773404357734,1.11499522,2128.6,2128.1,3.16914772]
[1773404357934,1.07028553,2128.6,2128.2,0.32941879]
[1773404358349,1.03998938,2128.6,2128.2,0.32941879]
[1773404358549,0.99455006,2128.6,2128.2,0.32941879]
[1773404358837,0.91957577,2128.6,2128.2,0.32941879]
[1773404359060,0.88958298,2128.6,2128.2,0.32941879]
[1773404359235,10.85360513,2128.7,2128.2,0.32941879]
[1773404359437,1.14485914,2128.6,2128.2,0.32941879]
[1773404359765,1.07120935,2128.6,2128.2,0.32941879]
[1773404359963,1.02597995,2128.6,2128.2,1.50411935]
[1773404360163,1.01078973,2128.6,2128.2,1.50411935]
[1773404360471,0.93797341,2128.6,2128.2,1.50411935]
[1773404360677,0.89319537,2128.6,2128.2,1.50411935]
[1773404360975,1.12999612,2128.6,2128.2,0.32941879]
[1773404361282,1.08532678,2128.6,2128.2,1.50411609]
[1773404361439,1.04144123,2128.6,2128.2,1.50411609]
[1773404361636,7.49462541,2129.0,2128.3,0.40625543]
[1773404363466,7.49462541,2129.0,2128.4,0.36026958]
[1773404363663,0.002,2128.8,2128.5,1.58078707]
[1773404363968,7.43744311,2129.0,2128.5,1.58078707]
[1773404364337,7.43944311,2129.0,2128.5,1.58078707]
[1773404364539,0.002,2129.0,2128.6,0.41645188]
[1773404365370,0.002,2129.0,2128.7,1.663]
[1773404365541,0.002,2129.0,2128.8,0.41645188]
[1773404366965,1.16379738,2129.2,2128.8,0.41645188]
[1773404367180,0.002,2129.3,2128.8,0.41645188]
[1773404367470,1.17609644,2129.3,2128.8,0.41645188]
[1773404367642,0.002,2129.3,2129.0,0.41645188]
[1773404372562,6.29377405,2129.3,2129.0,0.41645188]
[1773404373059,6.29377405,2129.3,2129.0,1.59070562]
[1773404373060,0.002,2129.3,2129.0,1.59070562]
[1773404373264,6.29177405,2129.7,2129.1,0.41645188]
[1773404373962,7.46570342,2129.6,2129.1,1.59063768]
[1773404374270,7.46570342,2129.6,2129.2,0.41645188]
[1773404375673,0.002,2129.5,2129.2,0.41645188]
[1773404377342,6.29377405,2129.5,2128.9,0.41645188]
[1773404378377,7.46581368,2129.4,2129.0,0.41645188]
[1773404378761,7.46581368,2129.4,2128.9,1.17427671]
[1773404379077,7.46581368,2129.4,2128.9,1.59072859]
[1773404379381,7.46581368,2129.4,2129.0,0.41645188]
[1773404380375,0.002,2129.5,2129.1,0.41645188]
[1773404380574,0.002,2129.5,2129.1,0.46342008]
[1773404381077,1.17598649,2129.5,2129.1,0.46342008]
[1773404381374,0.002,2129.5,2129.1,0.46342008]
[1773404381752,1.17599096,2129.5,2129.1,0.46342008]
[1773404382452,1.17599096,2129.5,2129.1,1.63759919]
[1773404382978,7.46776501,2129.5,2129.1,1.63759919]
[1773404386902,7.46776501,2129.5,2129.2,0.41645188]
[1773404388072,7.46776501,2129.5,2129.3,0.001]
[1773404388802,7.46776501,2129.5,2129.0,4.698003]
[1773404388803,7.46776501,2129.5,2129.0,0.001]
[1773404394102,7.46776501,2129.5,2128.8,1.665]
[1773404394601,7.45353142,2129.5,2128.8,1.665]
[1773404396610,7.39478114,2129.5,2128.8,1.665]
[1773404396904,7.33460348,2129.5,2128.8,1.665]
[1773404397090,7.27473424,2129.5,2128.8,1.665]
[1773404399207,7.25989011,2129.5,2128.8,1.665]
[1773404399392,7.21603906,2129.5,2128.8,1.665]
[1773404399912,6.26239289,2129.5,2128.8,1.665]
[1773404400212,7.37689826,2129.5,2128.8,2.17231863]
[1773404400512,7.3321337,2129.5,2128.8,2.17231863]
[1773404400706,7.31733344,2129.5,2129.0,0.001]
[1773404401013,6.2390838,2129.2,2129.0,0.001]
[1773404401883,6.20857141,2129.2,2129.0,0.001]
[1773404402083,6.16398831,2129.2,2129.0,0.001]
[1773404402283,6.11904686,2129.2,2129.0,0.001]
[1773404402497,6.10441002,2129.2,2129.0,0.001]
[1773404403407,6.10441002,2129.2,2128.8,0.001]
[1773404403408,6.2390838,2129.0,2128.8,0.001]
[1773404403577,6.22429631,2129.0,2128.5,0.001]
[1773404403783,7.39896458,2129.2,2128.6,0.77696834]
[1773404404012,7.35503784,2129.2,2128.8,0.77696834]
[1773404404201,7.32553022,2129.2,2128.8,0.77696834]
[1773404404401,7.28038124,2129.2,2128.8,0.77696834]
[1773404404612,7.26567414,2129.2,2128.8,0.77696834]
[1773404404803,7.23652311,2129.2,2128.8,0.77696834]
[1773404405108,7.17701581,2129.2,2128.7,0.20733381]
[1773404405303,7.1318627,2129.2,2128.7,0.20733381]
[1773404407514,7.1163307,2129.2,2128.7,0.28263388]
[1773404407822,7.08724469,2129.2,2128.7,0.29682869]
[1773404408118,7.04280091,2129.2,2128.7,0.29682869]
[1773404408322,6.99691303,2129.2,2128.7,0.29682869]
[1773404408490,6.9680287,2129.2,2128.7,0.29682869]
[1773404408693,6.93868331,2129.2,2128.7,0.29682869]
[1773404408894,6.92323932,2129.2,2128.7,0.29682869]
[1773404409114,6.89414488,2129.2,2128.7,0.29682869]
[1773404409521,6.87973834,2129.2,2128.7,0.29682869]
[1773404409826,6.83576306,2129.2,2128.7,0.29682869]
[1773404409999,6.80667616,2129.2,2128.7,0.29682869]
[1773404410201,6.74812372,2129.2,2128.5,0.62236067]
[1773404410400,6.2390838,2129.0,2128.5,0.001]
[1773404411194,6.2390838,2128.8,2128.2,0.66608948]
[1773404411408,6.2390838,2128.8,2128.1,1.658]
[1773404411602,1.1744257,2128.7,2128.1,1.658]
[1773404411822,6.2390838,2128.6,2128.1,1.658]
[1773404412025,6.2390838,2128.6,2128.1,2.32408948]
[1773404412424,6.2390838,2128.6,2128.2,0.71307754]
[1773404413001,6.22396772,2128.6,2128.2,0.71307754]
[1773404413212,6.19392396,2128.6,2128.2,0.04698806]
[1773404413414,6.19392396,2128.6,2128.1,0.75923959]
[1773404413830,7.41361985,2128.5,2128.1,0.75923959]
[1773404414932,7.41361985,2128.5,2128.4,0.001]
[1773404415112,7.41361985,2128.5,2128.1,0.71224932]
[1773404415446,7.41361985,2128.5,2127.9,1.1758391]
[1773404415447,6.2390838,2128.4,2127.9,0.001]
[1773404415740,6.20967968,2128.4,2127.9,0.001]
[1773404415904,6.19546806,2128.4,2127.9,0.001]
[1773404416105,6.20942441,2128.2,2127.9,0.001]
[1773404416305,6.16530459,2128.2,2127.9,0.001]
[1773404416500,6.13537745,2128.2,2127.9,0.001]
[1773404416706,6.07779152,2128.2,2127.9,0.001]
[1773404416912,6.06331893,2128.2,2127.9,0.001]
[1773404417112,6.03414402,2128.2,2127.9,0.001]
[1773404417314,6.00486504,2128.2,2127.9,0.001]
[1773404417506,5.96063022,2128.2,2127.9,0.001]
[1773404417835,5.90091486,2128.2,2127.9,0.001]
[1773404418219,7.39852989,2128.1,2127.9,0.001]
[1773404418710,1.17474439,2128.2,2127.9,0.001]
[1773404418910,1.17474439,2128.2,2128.0,1.10751943]
[1773404419236,1.17474439,2128.2,2127.8,0.001]
[1773404419237,7.67474438,2128.2,2127.8,0.001]
[1773404420328,7.66023654,2128.2,2127.8,0.001]
[1773404420527,7.61636899,2128.2,2127.8,0.001]
[1773404420725,7.55701712,2128.2,2127.8,0.001]
[1773404421041,7.52775884,2128.2,2127.8,0.001]
[1773404421258,7.49924461,2128.2,2127.8,0.001]
[1773404421411,7.45436774,2128.2,2127.8,0.001]
[1773404421742,6.49999999,2128.2,2127.8,0.001]
[1773404422044,7.64506055,2128.2,2127.8,0.001]
[1773404422228,7.61556311,2128.2,2127.8,0.001]
[1773404422408,7.57073122,2128.2,2127.8,0.001]
[1773404422625,7.52607652,2128.2,2127.8,0.001]
[1773404422824,7.48188405,2128.2,2127.8,0.001]
[1773404423024,7.46742163,2128.2,2127.8,0.001]
[1773404423229,7.43709362,2128.2,2127.8,0.001]
[1773404423452,7.39179963,2128.2,2127.8,0.001]
[1773404423654,7.36113304,2128.2,2127.8,0.001]
[1773404423843,7.35148423,2128.2,2127.8,0.001]
[1773404424047,7.33697997,2128.2,2127.8,0.001]
[1773404424360,7.29249574,2128.2,2127.5,1.17508661]
[1773404424532,6.41122709,2128.1,2127.5,4.27762816]
[1773404424732,6.35329655,2128.1,2127.2,0.03613734]
[1773404424932,6.30871033,2128.1,2127.3,3.75284322]
[1773404425340,6.26472573,2128.1,2127.3,3.75284322]
[1773404425535,6.22025441,2128.1,2127.5,0.65348125]
[1773404425742,6.15961236,2128.1,2127.5,0.65348125]
[1773404425934,6.1303877,2128.1,2127.5,0.65348125]
[1773404426289,7.58603912,2128.0,2127.5,0.65348125]
[1773404426461,7.54083183,2128.0,2127.6,4.54130807]
[1773404426758,7.4967467,2128.0,2127.6,0.78846485]
[1773404426940,7.45233719,2128.0,2127.6,0.78846485]
[1773404427141,7.43679349,2128.0,2127.6,0.78846485]
[1773404427354,7.44154925,2128.0,2127.7,0.001]
[1773404427533,7.39703951,2128.0,2127.7,0.001]
[1773404427734,7.35487163,2128.0,2127.7,0.001]
[1773404427934,6.43225139,2128.0,2127.7,0.001]
[1773404428244,1.22637882,2128.0,2127.8,3.75284322]
[1773404428435,7.56086686,2128.2,2127.8,0.93976666]
[1773404428633,7.51608564,2128.2,2127.9,3.75284322]
[1773404428830,7.47199762,2128.2,2127.9,3.75284322]
[1773404429034,7.42742058,2128.2,2127.8,0.93976666]
[1773404429360,7.38197193,2128.2,2127.8,0.93976666]
[1773404429567,7.37341726,2128.2,2127.9,0.03539454]
[1773404429726,7.31465656,2128.2,2127.8,0.93976666]
[1773404429927,1.209806,2128.2,2127.9,1.27640264]
[1773404430147,1.15923517,2128.2,2127.9,1.27640264]
[1773404430347,1.1149861,2128.2,2127.9,1.27640264]
[1773404430572,1.08508604,2128.2,2127.9,1.27640264]
[1773404430778,1.0258822,2128.2,2127.9,1.27640264]
[1773404430970,0.98204788,2128.2,2127.9,1.27640264]
[1773404431282,0.9521983,2128.2,2127.9,1.27640264]
[1773404431479,6.38216083,2128.1,2127.7,1.32147764]
[1773404431649,0.9077033,2128.2,2127.8,1.32047764]